Cogmind - Beta 12 @@@ ROGUE MODE // 2023.05.06 @ 19:24:17 Player: Ms. V3-11A Result: Destroyed by H-66 Slayer with Gauss Rifle Performance ------------- Evolutions (5) 2500 Regions Visited (12) 2400 Robots Destroyed (138) 690 Value Destroyed (5456) 5456 Prototype IDs (14) 280 Alien Tech Used (0) 0 Bonus (1533) 1533 TOTAL SCORE: 12859 Bonus ------- High Alert Combat Kills 309 Follower Combat Kills 740 Entered DSFs 500 Network Hubs Disabled 200 Friendly Fire -216 Cogmind --------- Core Integrity 0/1000 Matter 89/300 Energy 99/100 System Corruption 47% Temperature Cool (0) Movement Core (50) Location -5/Hub_04(d) Parts ------- > --- POWER (2) -------- (None) > --- PROPULSION (4) --- (None) > --- UTILITY (8) ------ (None) > --- WEAPON (3) ------- (None) > --- INVENTORY (5) ---- Large Storage Unit Improved Hacking Suite Improved Hacking Suite Advanced Variable Charge Gun Advanced Variable Charge Gun Peak State ------------ > --- POWER ------------ Particle Reactor Nuclear-Particle Core > --- PROPULSION ------- Treaded FC Exoskeleton > --- UTILITY ---------- Armored Scrap Engine Large Storage Unit Energy Well Centrium Medium Armor Plating Centrium Medium Armor Plating Improved Shield Generator Improved System Shield > --- WEAPON ----------- Advanced Variable Charge Gun Advanced KE Penetrator Hyp. Kinetic Rail Construct/G > --- INVENTORY -------- Large Storage Unit Matter Compressor Advanced Sensor Array Advanced Signal Interpreter Improved Medium Armor Plating Improved Hacking Suite Improved Hacking Suite Improved Hacking Suite Improved Hacking Suite Improved Hacking Suite Improved System Shield Improved System Shield Advanced Variable Charge Gun Proton Missile Launcher Proton Missile Launcher [Rating: 111] Favorites ----------- Power Constructs Engine Heavy Ion Engine Power Core Constructs Reactor Cold Fusion Reactor Propulsion Light Treads Treads Light Treads Leg Aluminum Leg Utility Large Storage Unit Device Armored Scrap Engine Storage Large Storage Unit Processor Advanced Signal Interpreter Hackware Hacking Suite Protection Light Armor Plating Weapon Improved Assault Rifle Energy Gun Constructs Energy Cannon Constructs Ballistic Gun Improved Assault Rifle Ballistic Cannon Improved Light Cannon Launcher Proton Missile Launcher Build | -11 -10 -9 -9 -9 -7 -7 -6 -5 -5 -5 -5 -5 ------- Run | Jun Mat Mat Sto Rec Fac DSF Fac Fac Ext Cet Arc Hub Slots Evolved 10 | . . 2 . . 4 . 2 2 . . . . Power 1 | . . . . . . . 1 . . . . . Propulsion 2 | . . . . . 1 . . 1 . . . . Utility 6 | . . 1 . . 3 . 1 1 . . . . Weapon 1 | . . 1 . . . . . . . . . . Parts Attached 101 | . 14 5 19 1 3 3 11 6 7 8 15 9 Power 9 | . 3 . 1 . . . 3 . . . 2 . Engine 5 | . 3 . 1 . . . 1 . . . . . Core 1 | . . . . . . . 1 . . . . . Reactor 3 | . . . . . . . 1 . . . 2 . Propulsion 8 | . 4 . 3 . 1 . . . . . . . Treads 7 | . 3 . 3 . 1 . . . . . . . Leg 1 | . 1 . . . . . . . . . . . Wheel . | . . . . . . . . . . . . . Hover . | . . . . . . . . . . . . . Flight . | . . . . . . . . . . . . . Utility 40 | . 4 2 2 1 2 . 5 4 4 5 8 3 Device 19 | . 1 1 . 1 . . 2 2 4 1 5 2 Storage 4 | . 1 . . . . . . 1 . 1 1 . Processor 1 | . . . . . . . 1 . . . . . Hackware 3 | . . 1 . . . . 1 . . . 1 . Protection 13 | . 2 . 2 . 2 . 1 1 . 3 1 1 Artifact . | . . . . . . . . . . . . . Weapon 44 | . 3 3 13 . . 3 3 2 3 3 5 6 Energy Gun 4 | . . . 2 . . . . . . . 2 . Energy Cannon 6 | . . . 1 . . 1 2 1 1 . . . Ballistic Gun 15 | . 3 . 5 . . . . . . 1 3 3 Ballistic Cannon 7 | . . 3 3 . . . . . 1 . . . Launcher 12 | . . . 2 . . 2 1 1 1 2 . 3 Special Weapon . | . . . . . . . . . . . . . Impact Weapon . | . . . . . . . . . . . . . Slashing Weapon . | . . . . . . . . . . . . . Piercing Weapon . | . . . . . . . . . . . . . Special Melee Weapon . | . . . . . . . . . . . . . Unidentified Prototypes 8 | . 1 . 3 . . . 1 . . 2 1 . Corrupted Parts 11 | . . . 3 . 1 . . . 1 1 4 1 System Corruption 53 | . . . 8 . 4 . . . 1 10 24 6 Parts Lost 31 | . 3 . 3 . . 1 4 1 . 3 2 14 Power 5 | . 1 . . . . . . . . . 2 2 Propulsion 6 | . . . 1 . . . 1 . . . . 4 Utility 15 | . 1 . 1 . . . 3 1 . 3 . 6 Weapon 5 | . 1 . 1 . . 1 . . . . . 2 Highest Loss Streak 7 | . 1 . 2 . . 1 1 1 . 2 1 7 To Critical Strikes 1 | . . . . . . . 1 . . . . . Average Slot Usage (%) 80 | . 99 95 95 87 64 83 70 73 73 70 65 58 Engine 6 | . 13 11 11 11 7 7 5 . 2 1 . . Core 1 | . . . . . . . 2 5 2 . . 2 Reactor 2 | . . . . . . . . 5 5 8 8 5 Treads 11 | . 17 22 21 22 15 15 5 5 1 3 1 4 Leg 2 | . 10 . . . 4 7 . . 2 1 3 . Device 10 | . 4 . . 10 7 7 13 13 18 14 14 11 Storage 10 | . 14 11 11 11 7 7 6 11 11 8 10 10 Processor 1 | . . . . . . . 4 5 3 . . . Hackware 1 | . . 7 11 . . . 3 . . . 2 1 Protection 6 | . 8 10 9 . . 15 7 5 5 15 11 7 Energy Gun 3 | . 1 . 2 11 12 4 . . 2 . 2 6 Energy Cannon 5 | . . . . . . 3 16 16 5 . . . Ballistic Gun 10 | . 26 1 16 22 8 7 2 . . 2 3 3 Ballistic Cannon 2 | . . 31 10 . . 3 . . 4 5 1 . Naked Turns 5 | . . . . . . . . . . . . 5 Heaviest Build 101 | 11 34 43 45 38 48 53 66 75 80 92 101 96 Greatest Support 133 | 20 40 40 40 40 40 40 103 81 133 133 107 107 Greatest Overweight (x) 3 | . . 1 2 . 2 2 1 . 1 1 1 3 Average Overweight (x) . | . . . . . 1 1 . . . . . . Largest Inventory Capacity 15 | 8 15 15 15 15 15 15 15 15 15 15 15 15 Average Capacity 14 | 8 10 15 15 15 15 15 15 15 15 15 15 14 Most Carried 15 | 5 10 15 15 15 14 12 14 15 15 15 15 15 Average Carried 12 | 4 7 14 13 14 13 11 11 13 14 14 14 14 Final Capacity 15 | 8 15 15 15 15 15 15 15 15 15 15 15 5 Final Carried 15 | 4 10 15 15 15 12 12 14 15 15 14 15 5 Scrap Engine Consumption 218 | . . . . 37 3 42 27 20 38 23 17 11 Constructs Created 7 | . . . . . 2 . 3 . . . 2 . Constructs Modified 65 | . . . . . 1 2 16 6 21 7 10 2 Class Distribution -------------------- 26% | Construct 20% | Mutant 14% | Gunner 11% | Commander-Construct 10% | Scavenger-Construct 8% | Tank 4% | Commander-Gunner Dominant Class ---------------- Mutant | -10/Materials Tank | -9/Materials Tank | -9/Storage Gunner | -9/Recycling Commander-Gunner | -7/Factory Mutant | -7/DSF Construct | -6/Factory Construct | -5/Factory Commander-Construct | -5/Extension Commander-Construct | -5/Cetus Scavenger-Construct | -5/Archives Scavenger-Construct | -5/Hub_04(d) Resources | -11 -10 -9 -9 -9 -7 -7 -6 -5 -5 -5 -5 -5 ----------- Run | Jun Mat Mat Sto Rec Fac DSF Fac Fac Ext Cet Arc Hub Matter Collected 3315 | 200 233 158 318 677 . 80 606 . 265 115 428 235 Remotely . | . . . . . . . . . . . . . Salvage Created 6072 | . 619 154 365 728 . 266 826 76 578 770 604 1086 Parts 305 | . 46 10 24 33 . 11 34 14 23 25 39 46 Haulers Intercepted 4 | . 1 . 1 . . . . . . . . 2 Recyclers Shooed 3 | . . . 1 2 . . . . . . . . Parts Field Recycled . | . . . . . . . . . . . . . Retrieved Matter . | . . . . . . . . . . . . . Parts Self-Destructed . | . . . . . . . . . . . . . Prevented . | . . . . . . . . . . . . . Kills | -11 -10 -9 -9 -9 -7 -7 -6 -5 -5 -5 -5 -5 ------- Run | Jun Mat Mat Sto Rec Fac DSF Fac Fac Ext Cet Arc Hub Combat Hostiles Destroyed 101 | . 16 4 8 9 . 8 16 4 9 12 4 11 Guns 39 | . 16 . 1 9 . 1 2 . 2 . 3 5 Cannons 27 | . . 4 4 . . . 10 . 7 2 . . AOE 29 | . . . 3 . . 7 3 4 . 6 1 5 Classes Destroyed 15 | . 5 2 1 4 . . 1 2 . . . . Worker 6 | . 2 2 . . . . . . . . . 2 Builder 3 | . . . 1 . . . . . . . . 2 Tunneler 1 | . . . . . . . . 1 . . . . Hauler 4 | . 1 . 1 . . . . . . . . 2 Recycler 7 | . . 1 1 3 . . . . . . . 2 Operator 13 | . 2 1 . . . . 1 . 1 . 6 2 Watcher 2 | . . . . . . . . 1 . 1 . . Swarmer 26 | . 6 . 3 . . 3 3 4 2 3 . 2 Grunt 38 | . 10 3 3 1 . 4 2 . 5 5 . 5 Brawler 1 | . . . . 1 . . . . . . . . Protector 1 | . . . . 1 . . . . . . . . Sentry 18 | . . 1 2 4 . . 4 . 2 . 4 1 Hunter 6 | . . . . 1 . 1 3 . . . . 1 Programmer 6 | . . . . 1 . . 3 . . . . 2 Heavy 1 | . . . . . . . 1 . . . . . Cetus Guard 4 | . . . . . . . . . . 4 . . Thug 1 | . . . . . . . . . 1 . . . Best Kill Streak 12 | . 5 5 3 4 . 4 3 6 3 6 3 12 Combat Bots Only 5 | . 3 2 3 2 . 4 3 4 3 5 1 4 Max Kills in Single Turn 11 | . 1 1 2 1 . 3 2 4 1 2 1 11 Gunslinging . | . . . . . . . . . . . . . Exploded 3 | . . . 2 . . 3 2 3 . 2 1 3 Melee . | . . . . . . . . . . . . . Uniques/NPCs Destroyed . | . . . . . . . . . . . . . Combat | -11 -10 -9 -9 -9 -7 -7 -6 -5 -5 -5 -5 -5 -------- Run | Jun Mat Mat Sto Rec Fac DSF Fac Fac Ext Cet Arc Hub Damage Taken 12097 | . 872 269 655 480 . 169 1754 274 919 710 1475 4520 Core 1494 | . 167 54 42 43 . 13 170 22 142 56 145 640 Absorbed by Shields 903 | . . . . 10 . 43 . 103 294 116 232 105 Regen/Repaired (Parts) 2853 | . 57 . 127 107 . 18 371 280 781 339 765 8 Core Remaining (%) 75 | 100 33 . . 65 . 98 80 . . . . . Volleys Fired 402 | . 88 17 26 24 . 10 56 2 34 18 76 51 Largest 3 | . 2 3 3 3 . 3 3 1 3 2 2 3 Hottest 330 | . 70 117 117 102 . 121 210 39 330 275 275 176 Shots Fired 744 | . 176 44 51 74 . 15 112 2 87 23 87 73 Gun 440 | . 176 . 23 74 . 9 16 . 14 5 61 62 Cannon 252 | . . 44 22 . . . 94 . 70 7 15 . Launcher 52 | . . . 6 . . 6 2 2 3 11 11 11 Special . | . . . . . . . . . . . . . Kinetic 485 | . 164 44 45 50 . 6 23 . 30 7 61 55 Thermal 207 | . 12 . . 24 . 3 87 . 54 5 15 7 Explosive 10 | . . . . . . 6 2 2 . . . . Electromagnetic 42 | . . . 6 . . . . . 3 11 11 11 Robot Hit Streak 21 | . 11 6 18 9 . 20 21 1 10 10 7 6 Robot Miss Streak 5 | . 5 4 2 3 . . 5 1 5 3 3 3 Penetration Max 1 | . . . . . . . . . . . 1 1 Secondary Targets 4 | . 3 . . 1 . . . . . . . . Max Gunslinging Chain 1 | . 1 . . 1 . . . . . . . . Shots Hit Robots 422 | . 98 24 31 50 . 11 71 1 33 11 53 39 Core Hits 234 | . 39 9 14 18 . 15 26 6 21 20 25 41 Critical Kills 6 | . . . . . . . . . . . 4 2 Critical Parts Destroyed 10 | . . . . . . 1 . . . . 4 5 Critical Strikes 26 | . 2 2 . 3 . 3 . . 1 . 8 7 Burn 7 | . 2 . . 3 . 2 . . . . . . Destroy 16 | . . . . . . 1 . . . . 8 7 Blast 3 | . . 2 . . . . . . 1 . . . Melee Attacks . | . . . . . . . . . . . . . Impact . | . . . . . . . . . . . . . Slashing . | . . . . . . . . . . . . . Piercing . | . . . . . . . . . . . . . Sneak Attacks . | . . . . . . . . . . . . . Combat Hostiles . | . . . . . . . . . . . . . Follow-up Attacks . | . . . . . . . . . . . . . Damage Inflicted 14628 | . 1028 601 730 811 . 705 2342 335 1461 1564 1794 3257 Guns 4849 | . 1027 . 308 794 . 97 239 . 263 18 1170 933 Cannons 4403 | . . 601 278 . . . 1877 . 1052 132 463 . Explosions 5336 | . . . 144 . . 608 206 335 146 1414 161 2322 Melee . | . . . . . . . . . . . . . Ramming 40 | . 1 . . 17 . . 20 . . . . 2 Kinetic 5634 | . 965 601 586 531 . 47 331 . 412 150 1170 841 Thermal 4202 | . 62 . . 263 . 50 1785 163 1002 286 463 128 Explosive 986 | . . . . . . 608 206 172 . . . . Electromagnetic 3766 | . . . 144 . . . . . 47 1128 161 2286 Impact . | . . . . . . . . . . . . . Slashing . | . . . . . . . . . . . . . Piercing . | . . . . . . . . . . . . . Highest Corruption 47 | . . . 8 9 4 4 2 . 1 11 29 47 Average Corruption 8 | . . . 7 8 4 4 1 . 1 7 13 34 Corruption Purged 6 | . . . . . . . . . . . 6 . Corruption Blocked . | . . . . . . . . . . . . . Effects 170 | . . . 12 65 3 10 14 . 1 8 29 28 Message Errors 32 | . . . . 17 1 5 1 . . 3 3 2 Matter Fused 39 | . . . 5 18 . . 4 . . . 8 4 Heat Flow Errors 22 | . . . 2 9 . 1 1 . 1 2 4 2 Energy Discharges 23 | . . . 1 7 1 1 3 . . 1 5 4 Parts Rejected 6 | . . . . . . . . . . . 3 3 Parts Fused 2 | . . . . . . . 1 . . . . 1 Data Loss (minor) 19 | . . . 3 7 . 1 1 . . . 4 3 Data Loss (major) 8 | . . . 1 2 . 1 2 . . 1 . 1 Misfires 6 | . . . . 3 . . . . . 1 . 2 Alerts 6 | . . . . 1 1 . 1 . . . 1 2 Misdirections 3 | . . . . . . . . . . . . 3 Weapon Failures 4 | . . . . 1 . 1 . . . . 1 1 Overload Shots . | . . . . . . . . . . . . . Overflow Damage 262 | . . . . . . . 74 59 37 7 37 48 Projectiles 105 | . . . . . . . 38 . 30 . 37 . Explosions 157 | . . . . . . . 36 59 7 7 . 48 Melee . | . . . . . . . . . . . . . Knockbacks 13 | . . 4 . . . . 3 . 6 . . . Impact . | . . . . . . . . . . . . . Kinetic 12 | . . 4 . . . . 3 . 5 . . . Secondary 1 | . . . . . . . . . 1 . . . Self-Inflicted Damage 342 | . . . 10 . . . . 134 . . . 198 Shots 10 | . . . 2 . . . . 2 . . . 6 Rammed 6 | . 1 . . 2 . . 2 . . . . 1 Targets Rammed 7 | . 1 . . 3 . . 2 . . . . 1 Kicked . | . . . . . . . . . . . . . Crushed 1 | . . . . 1 . . . . . . . . Highest Temperature 669 | . 361 480 268 265 . 669 368 . 570 252 645 369 Average Temperature 119 | . 29 216 86 76 . 253 103 . 190 92 134 166 Received Heat Transfer 2445 | . 351 144 228 113 . 45 264 . 182 102 213 803 Effects 56 | . . 8 2 . . 8 4 . 15 . 10 9 Shutdowns 10 | . . 2 . . . . 2 . 2 . 2 2 Energy Bleed 8 | . . 3 . . . . 1 . 2 . 1 1 Interference 18 | . . 3 2 . . 2 1 . 3 . 3 4 Matter Decay 2 | . . . . . . 1 . . . . . 1 Short Circuit 5 | . . . . . . 1 . . 1 . 3 . Damage (minor) 3 | . . . . . . . . . 2 . . 1 Damage (major) 8 | . . . . . . 4 . . 4 . . . Damage (core) 2 | . . . . . . . . . 1 . 1 . Siege Activations . | . . . . . . . . . . . . . Robots Corrupted 5 | . . . . . . . . . . 4 . 1 Combat Hostiles 5 | . . . . . . . . . . 4 . 1 Parts Fried 15 | . . . . . . . . . . 8 . 7 Impact Corruptions . | . . . . . . . . . . . . . Robots Melted 1 | . . . . . . . 1 . . . . . Combat Hostiles 1 | . . . . . . . 1 . . . . . Parts Melted 19 | . . . . 1 . . 15 . 2 . 1 . Heat Transferred 6024 | . 333 . . 764 . 259 2454 100 1342 150 461 161 Parts Sabotaged . | . . . . . . . . . . . . . Parts Stolen . | . . . . . . . . . . . . . Parts Stripped . | . . . . . . . . . . . . . Power Chain Reactions 5 | . . . . . . . . . . 3 . 2 Missiles Intercepted . | . . . . . . . . . . . . . Alert | -11 -10 -9 -9 -9 -7 -7 -6 -5 -5 -5 -5 -5 ------- Run | Jun Mat Mat Sto Rec Fac DSF Fac Fac Ext Cet Arc Hub Peak Influence 815 | . 180 192 289 173 166 202 302 434 654 815 483 767 Initial 364 | . . 39 80 40 161 116 105 115 116 364 326 105 Average 204 | . 59 79 160 64 161 128 146 233 532 619 358 216 Maximum Alert Level 3 | . . . 1 . . 1 1 2 2 3 2 3 Low Security (%) 62 | 100 100 100 65 100 100 63 65 54 4 . . 54 Level 1 19 | . . . 34 . . 36 34 15 9 10 63 43 Level 2 17 | . . . . . . . . 30 86 70 36 . Level 3 . | . . . . . . . . . . 19 . 2 Level 4 . | . . . . . . . . . . . . . Level 5 . | . . . . . . . . . . . . . High Security . | . . . . . . . . . . . . . Max Security . | . . . . . . . . . . . . . Sterilizations 1 | . . . . . . 1 . . . . . . Squads Dispatched 20 | . 3 . . . . 1 8 . 2 . . 6 Investigation 2 | . 1 . . . . . . . . . . 1 Extermination 3 | . . . . . . . 2 . . . . 1 Reinforcement 15 | . 2 . . . . 1 6 . 2 . . 4 Assault . | . . . . . . . . . . . . . Garrison . | . . . . . . . . . . . . . Intercept . | . . . . . . . . . . . . . Searches Triggered . | . . . . . . . . . . . . . Construction Impeded 2 | . . . . . . . 1 . . . . 1 Haulers Reinforced 2 | . . . . . . . 1 . . . . 1 Active Scanning Responses . | . . . . . . . . . . . . . Cargo Convoy Interrupts 1 | . . . . . . . 1 . . . . . Stealth | -11 -10 -9 -9 -9 -7 -7 -6 -5 -5 -5 -5 -5 --------- Run | Jun Mat Mat Sto Rec Fac DSF Fac Fac Ext Cet Arc Hub Distress Signals 17 | . 1 . 1 . . . 4 1 4 1 . 5 Communications Jammed . | . . . . . . . . . . . . . Distress Signals . | . . . . . . . . . . . . . Times Spotted 190 | . 30 6 11 10 . 9 22 9 21 23 23 26 Peak Tracking Total 9 | . 5 3 3 2 . 4 3 4 3 6 1 9 Tactical Retreats 4 | . 1 . . 1 . . . 1 . . . 1 Traps | -11 -10 -9 -9 -9 -7 -7 -6 -5 -5 -5 -5 -5 ------- Run | Jun Mat Mat Sto Rec Fac DSF Fac Fac Ext Cet Arc Hub Traps Triggered 5 | . . . 2 . . 1 . 1 . . . 1 Indirectly 3 | . . . 2 . . . . . . . . 1 Trap Hack Attempts . | . . . . . . . . . . . . . Triggered . | . . . . . . . . . . . . . Disarmed . | . . . . . . . . . . . . . Reprogrammed . | . . . . . . . . . . . . . Reused . | . . . . . . . . . . . . . Traps Extracted . | . . . . . . . . . . . . . Installed . | . . . . . . . . . . . . . Triggered 1 | . . . . . . . 1 . . . . . Machines | -11 -10 -9 -9 -9 -7 -7 -6 -5 -5 -5 -5 -5 ---------- Run | Jun Mat Mat Sto Rec Fac DSF Fac Fac Ext Cet Arc Hub Machines Disabled 40 | . . . 1 . . . 3 5 5 2 4 20 Max in Single Turn 18 | . . . 1 . . . 1 5 4 1 1 18 Garrison Access 1 | . . . . . . . . 1 . . . . Network Hub 1 | . . . . . . . . . . . . 1 Energy Cycler 2 | . . . . . . . . . 2 . . . Machines Repaired . | . . . . . . . . . . . . . Machines Sabotaged . | . . . . . . . . . . . . . Overloaded Fab Kills . | . . . . . . . . . . . . . Hacking | -11 -10 -9 -9 -9 -7 -7 -6 -5 -5 -5 -5 -5 --------- Run | Jun Mat Mat Sto Rec Fac DSF Fac Fac Ext Cet Arc Hub Machines Accessed 34 | . 7 3 3 8 1 . 5 4 2 1 . . Terminals 25 | . 5 2 2 5 1 . 4 3 2 1 . . Fabricators 1 | . . . . . . . 1 . . . . . Repair Stations 3 | . 1 1 1 . . . . . . . . . Recycling Units 4 | . 1 . . 3 . . . . . . . . Scanalyzers . | . . . . . . . . . . . . . Garrison Access 1 | . . . . . . . . 1 . . . . Total Hacks 83 | . 21 9 5 24 3 . 10 6 4 1 . . Successful 49 | . 15 4 4 12 1 . 5 5 2 1 . . Failed 34 | . 6 5 1 12 2 . 5 1 2 . . . Catastrophic 4 | . . 1 . . 1 . 1 . 1 . . . Database Lockouts . | . . . . . . . . . . . . . Manual 39 | . 12 3 3 13 . . 8 . . . . . Terminals 71 | . 17 8 3 21 3 . 9 5 4 1 . . Fabricators 1 | . . . . . . . 1 . . . . . Repair Stations 5 | . 2 1 2 . . . . . . . . . Recycling Units 5 | . 2 . . 3 . . . . . . . . Scanalyzers . | . . . . . . . . . . . . . Garrison Access 1 | . . . . . . . . 1 . . . . Terminal Hacks 30 | . 8 3 1 8 1 . 2 4 2 1 . . Record 3 | . . . . . . . . 1 1 1 . . Part Schematic 3 | . . . . 3 . . . . . . . . Prototype ID Bank 2 | . . 1 . 1 . . . . . . . . Open Door 3 | . . . 1 . . . . 1 1 . . . Open DSF 1 | . . . . . 1 . . . . . . . Level Access Points 1 | . . . . . . . . 1 . . . . Branch Access Points 2 | . 1 . . . . . . 1 . . . . Terminal Index 1 | . 1 . . . . . . . . . . . Alert Level 1 | . 1 . . . . . . . . . . . Unreport Threat 1 | . . . . 1 . . . . . . . . Locate Traps 1 | . 1 . . . . . . . . . . . Dispatch Records 1 | . . 1 . . . . . . . . . . Maintenance Status 1 | . 1 . . . . . . . . . . . Hauler Manifests 1 | . 1 . . . . . . . . . . . Registered Components 1 | . . 1 . . . . . . . . . . Zone Layout 7 | . 2 . . 3 . . 2 . . . . . Fabricator Hacks 1 | . . . . . . . 1 . . . . . Network Status 1 | . . . . . . . 1 . . . . . Repair Station Hacks 4 | . 2 . 2 . . . . . . . . . Scan Component 2 | . 1 . 1 . . . . . . . . . Repair 2 | . 1 . 1 . . . . . . . . . Recycling Unit Hacks . | . . . . . . . . . . . . . Scanalyzer . | . . . . . . . . . . . . . Garrison Access Hacks 1 | . . . . . . . . 1 . . . . Seal Access 1 | . . . . . . . . 1 . . . . Unauthorized Hacks 13 | . 5 1 1 4 . . 2 . . . . . Terminals 8 | . 3 1 1 1 . . 2 . . . . . Botnet 8 | . 3 1 1 1 . . 2 . . . . . Fabricators . | . . . . . . . . . . . . . Repair Stations . | . . . . . . . . . . . . . Recycling Units 5 | . 2 . . 3 . . . . . . . . Reject 1 | . 1 . . . . . . . . . . . Tunnel 4 | . 1 . . 3 . . . . . . . . Scanalyzers . | . . . . . . . . . . . . . Garrison Access . | . . . . . . . . . . . . . Data Cores Recovered 1 | . . 1 . . . . . . . . . . Used 1 | . . 1 . . . . . . . . . . Hacking Detections 26 | . 5 3 2 5 1 . 6 2 1 1 . . Full Trace Events . | . . . . . . . . . . . . . Feedback Events . | . . . . . . . . . . . . . Feedback Blocked . | . . . . . . . . . . . . . Robot Schematics Acquired . | . . . . . . . . . . . . . Robots Built . | . . . . . . . . . . . . . Authchips . | . . . . . . . . . . . . . Time . | . . . . . . . . . . . . . Total Robot Build Rating . | . . . . . . . . . . . . . Part Schematics Acquired 3 | . . . . 3 . . . . . . . . Parts Built . | . . . . . . . . . . . . . Authchips . | . . . . . . . . . . . . . Time . | . . . . . . . . . . . . . Total Part Build Rating . | . . . . . . . . . . . . . Parts Repaired 2 | . 1 . 1 . . . . . . . . . Time 52 | . 26 . 26 . . . . . . . . . Parts Recycled . | . . . . . . . . . . . . . Recycled Matter . | . . . . . . . . . . . . . Retrieved Matter . | . . . . . . . . . . . . . Retrieved Components . | . . . . . . . . . . . . . Parts Scanalyzed . | . . . . . . . . . . . . . Part Schematics Acquired . | . . . . . . . . . . . . . Parts Damaged . | . . . . . . . . . . . . . Bothacking | -11 -10 -9 -9 -9 -7 -7 -6 -5 -5 -5 -5 -5 ------------ Run | Jun Mat Mat Sto Rec Fac DSF Fac Fac Ext Cet Arc Hub Used RIF Installer . | . . . . . . . . . . . . . Robots Hacked . | . . . . . . . . . . . . . Non-combat . | . . . . . . . . . . . . . Combat . | . . . . . . . . . . . . . Robot Hacks Applied . | . . . . . . . . . . . . . Relay Couplers Released . | . . . . . . . . . . . . . Fabnet Peak Effective % . | . . . . . . . . . . . . . Robots Rewired 24 | . . . . 14 . . . . 10 . . . Allies Hacked . | . . . . . . . . . . . . . Hacks Repelled . | . . . . . . . . . . . . . Allies | -11 -10 -9 -9 -9 -7 -7 -6 -5 -5 -5 -5 -5 -------- Run | Jun Mat Mat Sto Rec Fac DSF Fac Fac Ext Cet Arc Hub Total Allies 24 | . . . . 14 . . . . 10 . . . Largest Group 14 | . . . . 14 14 14 . . 8 7 2 . Highest-Rated Group 268 | . . . . 268 268 268 . . 248 217 59 . Highest-Rated Ally 39 | . . . . 27 27 27 . . 39 39 31 . Total Orders 2 | . . . . . . . . . . 2 . . STAY 1 | . . . . . . . . . . 1 . . FOLLOW 1 | . . . . . . . . . . 1 . . Ally Attacks 162 | . . . . 4 . 34 . . 80 38 6 . Total Damage 2728 | . . . . 133 . 649 . . 1391 473 82 . Kills 22 | . . . . . . 2 . . 13 7 . . Allies Corrupted 1 | . . . . . . 1 . . . . . . Allies Melted . | . . . . . . . . . . . . . Intel | -11 -10 -9 -9 -9 -7 -7 -6 -5 -5 -5 -5 -5 ------- Run | Jun Mat Mat Sto Rec Fac DSF Fac Fac Ext Cet Arc Hub Robot Analysis Total . | . . . . . . . . . . . . . Derelict Logs Recovered . | . . . . . . . . . . . . . Drone Launches . | . . . . . . . . . . . . . Drone Recoveries . | . . . . . . . . . . . . . Exploration | -11 -10 -9 -9 -9 -7 -7 -6 -5 -5 -5 -5 -5 ------------- Run | Jun Mat Mat Sto Rec Fac DSF Fac Fac Ext Cet Arc Hub Turns Passed 9784 | 4 1396 351 549 1757 158 330 2065 469 1143 380 743 439 Spaces Moved 4775 | 3 737 120 181 911 39 114 1056 363 654 197 160 240 Core 8 | . . . . . . . . . . . . 8 Treads 3810 | . 454 120 181 911 1 62 1056 363 231 138 61 232 Legs 849 | 3 283 . . . 38 52 . . 315 59 99 . Wheels . | . . . . . . . . . . . . . Hover . | . . . . . . . . . . . . . Flight 108 | . . . . . . . . . 108 . . . Fastest Speed 50 | 120 120 160 160 160 160 240 125 125 63 109 118 50 Average Speed 149 | 120 144 230 217 160 286 265 133 125 124 154 167 117 Slowest Speed 320 | 120 160 240 320 160 290 320 240 125 193 190 211 211 Overloaded Moves . | . . . . . . . . . . . . . Propulsion Burnouts . | . . . . . . . . . . . . . Robots Hopped . | . . . . . . . . . . . . . Cave-ins Triggered . | . . . . . . . . . . . . . Exploration Rate (%) 43 | 1 86 11 31 99 1 70 24 11 67 50 77 31 Regions Visited 12 Branch Regions 6 Pre-discovered Areas 4 | . 1 . . 3 . . . . . . . . Known Exits Taken 3 | . . . . . 1 . 1 1 . . . . Unknown Exits Taken 8 | 1 1 1 1 1 . . . . 1 1 1 . Scrap Searched . | . . . . . . . . . . . . . Spaces Dug 12 | . . . . . . . 7 . 4 1 . . Terrain Destroyed 366 | . . . 2 . . 18 28 50 64 27 16 161 Melee . | . . . . . . . . . . . . . Projectile 88 | . . . 2 . . . 28 . 35 1 16 6 AOE 277 | . . . . . . 18 . 50 29 26 . 154 Terrain Rammed . | . . . . . . . . . . . . . Walls Destroyed . | . . . . . . . . . . . . . Machines Disabled . | . . . . . . . . . . . . . Actions | -11 -10 -9 -9 -9 -7 -7 -6 -5 -5 -5 -5 -5 --------- Run | Jun Mat Mat Sto Rec Fac DSF Fac Fac Ext Cet Arc Hub Total 6788 | 4 919 160 296 1159 87 129 1622 375 916 250 543 328 Wait 1098 | . 57 6 41 59 46 . 473 . 109 16 273 18 Move 4763 | 2 736 119 180 910 38 113 1055 362 653 196 159 240 Hop . | . . . . . . . . . . . . . Pick Up 70 | . 12 8 8 5 . . 10 4 5 7 9 2 Fast Attach 45 | . 7 3 11 1 . 1 7 . 1 . 10 4 Attach 27 | . 4 1 4 . 3 1 2 3 2 3 3 1 Detach 7 | . . 1 4 . . 1 1 . . . . . Swap 29 | . 3 1 4 . . 1 2 3 4 5 2 4 Drop 86 | 2 11 4 18 7 . . 14 1 6 5 11 7 Fire 402 | . 88 17 26 24 . 10 56 2 34 18 76 51 Melee . | . . . . . . . . . . . . . Ram . | . . . . . . . . . . . . . Kick . | . . . . . . . . . . . . . Crush 7 | . 1 . . 3 . . 2 . . . . 1 Escape Stasis 2 | . . . . . . 2 . . . . . . Rewire 252 | . . . . 150 . . . . 102 . . . Trap . | . . . . . . . . . . . . . Miscellaneous . | . . . . . . . . . . . . . Route ------- -11/Junkyard -10/Materials (discovered 5 exits: *Mat x3 / *Min x2) -9/Materials -9/Storage -9/Recycling -7/Factory -7/DSF -6/Factory -5/Factory (discovered 8 exits: Fac x4 / Upp x2 / *Ext x2) -5/Extension (discovered 3 exits: *Fac x2 / *Cet) -5/Cetus -5/Archives (discovered 2 exits: *Fac / [*Hub]) -5/Hub_04(d) History --------- Turn | Location | Event 2 | -11/Junkyard | Discovered new exit (range 0) 5 | -11/Junkyard | Entered Materials 290 | -10/Materials | Discovered new exit (range 15) 337 | -10/Materials | Build established: Mutant 400 | -10/Materials | Core integrity fell below 50% 656 | -10/Materials | Discovered new exit (range 15) 761 | -10/Materials | Discovered new exit (range 16) 916 | -10/Materials | Identified exit to Mines 1167 | -10/Materials | Repaired Lgt. Treads 1349 | -10/Materials | Discovered new exit (range 14) 1401 | -10/Materials | Entered another Materials area 1401 | -9/Materials | Evolved 2 slots: Utility x1, Weapon x1 1672 | -9/Materials | Discovered new exit (range 15) 1752 | -9/Materials | Entered Storage 2285 | -9/Storage | Repaired Lgt. Treads 2296 | -9/Storage | Used back door to open Recycling access 2296 | -9/Storage | Discovered new exit (range 4) 2301 | -9/Storage | Entered Recycling 2366 | -9/Recycling | Found Unknown Device 2366 | -9/Recycling | Identified Scrap Engine 2596 | -9/Recycling | Build established: Gunner 3117 | -9/Recycling | Discovered new exit (range 16) 4005 | -9/Recycling | Build established: Commander-Gunner 4058 | -9/Recycling | Entered Factory 4058 | -7/Factory | Accompanied by 14 allies 4058 | -7/Factory | Evolved 4 slots: Propulsion x1, Utility x3 4214 | -7/Factory | Identified exit to DSF 4216 | -7/Factory | Entered DSF 4216 | -7/DSF | Accompanied by 14 allies 4227 | -7/DSF | Additional patrols routed to DSF 4442 | -7/DSF | Sterilization system engaged 4462 | -7/DSF | Ambient heat levels rising (+10) 4477 | -7/DSF | Ambient heat levels rising (+10) 4492 | -7/DSF | Ambient heat levels rising (+10) 4507 | -7/DSF | Ambient heat levels rising (+10) 4508 | -7/DSF | Discovered new exit (range 16) 4522 | -7/DSF | Ambient heat levels rising (+10) 4537 | -7/DSF | Ambient heat levels rising (+10) 4546 | -7/DSF | Entered Factory 4546 | -6/Factory | Evolved 2 slots: Power x1, Utility x1 5141 | -6/Factory | Build established: Construct 5389 | -6/Factory | Cargo convoy interrupted 6533 | -6/Factory | Discovered new exit (range 16) 6574 | -6/Factory | Identified exit to Factory 6611 | -6/Factory | Entered another Factory area 6611 | -5/Factory | Evolved 2 slots: Propulsion x1, Utility x1 6715 | -5/Factory | Identified exit to Factory 6850 | -5/Factory | Identified exit to Upper Caves 6850 | -5/Factory | Identified exit to Extension 7080 | -5/Factory | Entered Extension 7092 | -5/Extension | Disrupted transfer network 7230 | -5/Extension | Energy Cycler disabled 7231 | -5/Extension | Rescued a captive Derelict 7232 | -5/Extension | Rescued a captive Derelict 7232 | -5/Extension | Rescued a captive Derelict 7233 | -5/Extension | Rescued a captive Derelict 7233 | -5/Extension | Rescued a captive Derelict 7234 | -5/Extension | Rescued a captive Derelict 7236 | -5/Extension | Rescued a captive Derelict 7244 | -5/Extension | Rescued a captive Derelict 7247 | -5/Extension | Rescued a captive Derelict 7615 | -5/Extension | Build established: Commander-Construct 7962 | -5/Extension | Spotted B-75 Beast 7976 | -5/Extension | Allies destroyed B-75 Beast 7980 | -5/Extension | Discovered exit to Factory (range 15) 7980 | -5/Extension | Spotted B-75 Beast 7986 | -5/Extension | Allies destroyed B-75 Beast 8005 | -5/Extension | Extracted ID and sensor layout for unrecognized location from A7's data core 8164 | -5/Extension | Discovered new exit (range 16) 8166 | -5/Extension | Discovered exit to Factory (range 15) 8223 | -5/Extension | Entered Cetus 8223 | -5/Cetus | Accompanied by 7 allies 8248 | -5/Cetus | Spotted Cetus Guard 8248 | -5/Cetus | Spotted Cetus Guard 8252 | -5/Cetus | Spotted Cetus Guard 8253 | -5/Cetus | Spotted Cetus Guard 8260 | -5/Cetus | Destroyed Cetus Guard 8261 | -5/Cetus | Destroyed Cetus Guard 8262 | -5/Cetus | Destroyed Cetus Guard 8263 | -5/Cetus | Destroyed Cetus Guard 8358 | -5/Cetus | System corruption reached 10% 8533 | -5/Cetus | Found a strange terminal 8576 | -5/Cetus | Discovered new exit (range 16) 8603 | -5/Cetus | Entered Archives 8603 | -5/Archives | Accompanied by 2 allies 8839 | -5/Archives | Discovered exit to Factory (range 15) 8868 | -5/Archives | Discovered new exit (range 15) 9160 | -5/Archives | Unable to access archive contents 9267 | -5/Archives | Build established: Scavenger-Construct 9346 | -5/Archives | Entered Hub_04(d) 9621 | -5/Hub_04(d) | Core integrity fell below 50% 9635 | -5/Hub_04(d) | System corruption reached 30% 9683 | -5/Hub_04(d) | Lost 7 parts (1p2n2u2w) 9713 | -5/Hub_04(d) | Core integrity fell below 20% 9755 | -5/Hub_04(d) | Lost 4 parts (1p1n2u) 9774 | -5/Hub_04(d) | Network Hub disabled 9785 | -5/Hub_04(d) | Destroyed by H-66 Slayer with Gauss Rifle Last Messages --------------- 09774_ R-10 Processor destroyed. 09774_ Scrap Engine destroyed. 09774_ Destroyed Scrap Engine. 09774_ A-15 Conveyor destroyed. 09774_ Control Node disabled. 09775_ H-66 Slayer system terminally corrupted. 09775_ Lgt. Fission Core fried. 09775_ Targeting Computer fried. 09776_ Treaded FC Exoskeleton destroyed. 09776_ Penetrated by Slug. 09776_ Dropped Lrg. Storage Unit. 09779_ System corrupted: Energy discharge (-99). 09779_ Discarded Energy Well. 09780_ Dropped Corrupted Adv. Variable Charge Gun. 09780_ Dropped Adv. KE Penetrator. 09780_ H-66 Slayer misfires. 09780_ Slug penetrates Earth. 09781_ Acquired Corrupted Adv. Variable Charge Gun. 09785_ Slug penetrates Wall. 09785_ Penetrated by Slug. Map ----- +----------------------------------------------------+ | | | | | | | | | | | | | | | | | | | | | | | | | | | | | | | | | | | ?????????????????#####;####??????????????????????? | | ?????????????????# ?????##??????#?#??????? | | ?????????????????# ###?? #???##"#"####???? | | ?????????????????# ! # ### ### !! #???? | | ?????????????????# ! ;;; # !! #???? | | ??????????????#####;;;;;;;;; ;;;;;;; ! #???? | | ?????????????## ; #???? | | ?????????? ; ;;;;;;;;;;;;;;[!!!; #???? | | ??????????????# ; ; @ !!!; #???? | | ??????????????# ;! ! ; !!!; #???? | | ??????????????#$ ; ; h!;; #???? | | ??????????????#% ; =; =%;;;;############ | | ??????????????# ; ; %;*[ | | ?????????????#; ; ; ;%%= | | ?????????????#; ; ; %;;%g;=""""###+?? | | ?????????????## ;;;;;;; ;;=!=% #????? | | ?????????????# ### ; *! ;; ! "????? | | ????????????? T ??##!!= /%/ ;; "#???? | | ?????????????? ""???? %;! /= ;; #????? | | ????????????????????";!;!;;;;;;;;;;; #????? | | ???????????????????# ;;;;;;; " #????? | | ???????????????????? # ; # " #????? | | ?????????????????????## ########! " " #????? | | ??????????????????????? ???????# #????? | | ???????????????????????????????????#######/##????? | | ?????????????????????????????????????????# #?????? | | ?????????????????????????????????" ?????# #?????? | | ????????????????????????????????"" T" ## ####### | | ?????????????????????????????????" """ / | | ???????????????????????????????""" # | | ????????????????????????????? [?## ####### | | ????????????????????????????# ?? ???# #?????? | | ?????????????????????????????????#########/####### | +----------------------------------------------------+ Best States ------------- Heat Dissipation 67 Energy Generation 38 Energy Capacity 930 Matter Stores 300 Matter Capacity 300 Sight Range 16 Terrain Scan Density 10 Armor Coverage 825 Evasion (%) 57 Recoil Reduction 4 Particle Charging 20 Offensive Hacking 10 Defensive Hacking 12 Item Schematics ----------------- Flak Cannon | -9/Recycling | Hacked Hrd. Light Armor Plating | -9/Recycling | Hacked Imp. Light Cannon | -9/Recycling | Hacked Robot Schematics ------------------ None Fabricated ------------ Nothing Alien Tech Used ----------------- None Achievements -------------- None Challenges ------------ None Game ------ Seed RelayTransmissionLance Manual? 0 Play Time 01:44:05 Cumulative 86.4 hours Start 2023.05.06 @ 17:27:09 End 2023.05.06 @ 19:24:17 Sessions 1 Manual Loads 0 Difficulty Rogue Special Mode None Game No. 77 Rogue 32 Adventurer 19 Explorer 26 Win Type - Total 0 Types 0/0/0/0/0/0/0/0/0 Lore% 29 Gallery% 48 Achievement% 66 Wizard Run 0 Options --------- ASCII 0 Keyboard 0 Movement Mouse Keybinds 0 Fullscreen 0 Font 16/Smallcaps Map View 76x50 Tactical HUD 1 Map Filters NONE Filters BRIGHTNESS(125)|SATURATION(75)|LOW_CONTRAST(13,24,33)|SHIFT_HUE(130) Steam 1 RUN: 85a718ff-e748-4770-bfa9-815e188abb79